Cogmind - Beta 10.2 @@@ ROGUE MODE // 2021.05.25 @ 17:02:15 Player: Mares Result: Destroyed by B-99 Colossus with Multirail Performance ------------- Evolutions (9) 4500 Regions Visited (27) 5400 Robots Destroyed (283) 1415 Value Destroyed (11522) 11522 Prototype IDs (62) 1240 Alien Tech Used (7) 1400 Bonus (9182) 9182 TOTAL SCORE: 34659 Bonus ------- High Alert Combat Kills 1872 Follower Combat Kills 2248 Network Hubs Disabled 200 Met Data Miner 300 Met Zhirov 300 A7 Reached Mainframe 300 Met R17 at Cetus 500 Used Core Reset Matrix 3000 Met Sigix 2000 Friendly Fire -1538 Cogmind --------- Core Integrity 0/1600 Matter 217/300 Energy 99/100 System Corruption 24% Temperature Cool (0) Movement Core (50) Location -1/Access Parts ------- > --- POWER (2) -------- (None) > --- PROPULSION (5) --- Improved Antigrav System > --- UTILITY (15) ----- Advanced Visual Processing Unit Advanced Signal Interpreter Long-range Terrain Scanner Advanced Terrain Scan Processor Advanced Target Analyzer System Shield Advanced System Shield Advanced Recalibrator > --- WEAPON (3) ------- (None) > --- INVENTORY (4) ---- Micro Fission Core Light Antimatter Reactor Reinforced Quantum Reactor Enhanced Quantum Rifle Peak State ------------ > --- POWER ------------ Quantum Reactor Light Quantum Reactor > --- PROPULSION ------- Combat Gravmag System Improved Antigrav System Improved Antigrav System Combat Antigrav System Experimental Gyrokinetic Inverter > --- UTILITY ---------- Advanced Power Amplifier Large Storage Unit Advanced Sensor Array Experimental Signal Interpreter Advanced Melee Analysis Suite Advanced Melee Analysis Suite Advanced Melee Analysis Suite Improved Armor Integrity Analyzer Advanced Actuator Array Advanced Reaction Control System Advanced Cloaking Device Medium Regenerative Plating Phase Redirector Improved Hacking Suite > --- WEAPON ----------- Core Cannon > --- INVENTORY -------- Quantum Reactor Experimental Gyrokinetic Inverter Experimental Gyrokinetic Inverter Heavy Regenerative Plating Subatomic Replicator Improved Potential Cannon [Rating: 180] Favorites ----------- Power Light Nuclear Core Engine Ion Engine Power Core Light Nuclear Core Reactor Light Quantum Reactor Propulsion Improved Medium Treads Treads Improved Medium Treads Leg Aluminum Leg Wheel Armored Huge Wheel Hover Unit Improved Antigrav System Flight Unit Xenon Bombardment Thruster Utility Large Storage Unit Device Advanced Sensor Array Storage Large Storage Unit Processor Advanced Melee Analysis Suite Hackware Improved Hacking Suite Protection Improved Medium Armor Plating Artifact Phase Redirector Weapon Kinetic Spear Energy Gun Gamma Rifle Energy Cannon EM Pulse Cannon Ballistic Gun Flak Gun Ballistic Cannon Magnetic Acceleration Cannon Launcher Heavy Rocket Launcher Special Weapon Plasma Flamer Impact Weapon Powered Hammer Slashing Weapon Plasma Sword Piercing Weapon Kinetic Spear Special Melee Weapon Datajack Build | -11 -10 -10 -10 -9 -8 -7 -7 -7 -7 -6 -6 -6 -6 -6 -6 -5 -5 -5 -5 -4 -4 -3 -3 -2 -2 -2 -1 ------- Run | Scr Mat Min Exi Min Mat Fac Low Low Dat Pro Fac Ext Cet Arc Hub Fac Upp Upp Zhi Pro Fac Res Tes Res Qua Sec Acc Slots Evolved 18 | . . . . . 4 2 . . . . 2 . . . . 2 . . . . 2 2 . 2 . . 2 Power 1 | . . . . . . . . . . . . . . . . . . . . . . . . 1 . . . Propulsion 3 | . . . . . . 2 . . . . . . . . . 1 . . . . . . . . . . . Utility 13 | . . . . . 4 . . . . . 2 . . . . 1 . . . . 2 2 . 1 . . 1 Weapon 1 | . . . . . . . . . . . . . . . . . . . . . . . . . . . 1 Parts Attached 550 | 7 7 . . 1 13 24 8 7 . 9 20 42 11 4 27 32 7 7 10 6 15 8 38 76 44 37 90 Power 46 | 1 1 . . . . 1 . . . . . 1 . . 1 3 . 2 1 . 1 1 3 8 2 7 13 Engine 3 | 1 1 . . . . . . . . . . . . . . 1 . . . . . . . . . . . Core 12 | . . . . . . 1 . . . . . 1 . . . 2 . 2 . . 1 . 1 . . 2 2 Reactor 31 | . . . . . . . . . . . . . . . 1 . . . 1 . . 1 2 8 2 5 11 Propulsion 99 | 3 1 . . . 1 3 . . . 3 4 8 . 2 5 8 . 4 3 2 1 2 4 10 5 6 24 Treads 18 | . . . . . . 2 . . . 2 1 8 . 2 2 1 . . . . . . . . . . . Leg 11 | 2 . . . . . . . . . 1 1 . . . 1 . . . . . . . . . . . 6 Wheel 4 | 1 1 . . . 1 1 . . . . . . . . . . . . . . . . . . . . . Hover 65 | . . . . . . . . . . . 2 . . . 2 7 . 4 3 2 1 2 4 10 5 6 17 Flight 1 | . . . . . . . . . . . . . . . . . . . . . . . . . . . 1 Utility 281 | 1 3 . . . 9 10 6 4 . 4 11 15 5 1 11 9 5 1 4 2 11 5 25 56 28 23 32 Device 141 | . . . . . 4 4 3 2 . 2 3 6 1 1 4 4 . 1 3 1 4 1 17 30 14 19 17 Storage 14 | 1 2 . . . . . . . . 1 1 . . . . . . . . . . . 2 1 . 2 4 Processor 31 | . . . . . 2 . 1 . . . 2 1 . . . 1 4 . . 1 2 1 . 5 2 1 8 Hackware 8 | . . . . . . . . . . . 1 . . . . 2 . . . . 1 1 . 1 . . 2 Protection 83 | . 1 . . . 3 6 2 2 . 1 4 8 4 . 7 2 1 . 1 . 4 2 6 19 8 1 1 Artifact 4 | . . . . . . . . . . . . . . . . . . . . . . . . . 4 . . Weapon 124 | 2 2 . . 1 3 10 2 3 . 2 5 18 6 1 10 12 2 . 2 2 2 . 6 2 9 1 21 Energy Gun 18 | 1 . . . . . 2 . . . . . . 1 . 3 1 . . . . . . 1 . . . 9 Energy Cannon 21 | . . . . . 1 2 . 2 . . 3 4 . . . . . . . . . . 1 . 3 . 5 Ballistic Gun 33 | 1 2 . . . 1 4 . . . 2 1 5 2 1 5 5 . . . . . . . . . . 4 Ballistic Cannon 4 | . . . . . . . . . . . . 1 1 . . . . . . . . . . . . . 2 Launcher 14 | . . . . . . . 1 . . . 1 3 2 . 1 3 . . . 2 . . . . . 1 . Special Weapon 1 | . . . . 1 . . . . . . . . . . . . . . . . . . . . . . . Impact Weapon 5 | . . . . . 1 2 1 1 . . . . . . . . . . . . . . . . . . . Slashing Weapon 5 | . . . . . . . . . . . . . . . 1 . . . . . . . . 1 3 . . Piercing Weapon 17 | . . . . . . . . . . . . . . . . 3 2 . 2 . 2 . 4 1 3 . . Special Melee Weapon 6 | . . . . . . . . . . . . 5 . . . . . . . . . . . . . . 1 Unidentified Prototypes 38 | . . . . . . 1 . . . 3 2 . 3 . . . . . 6 . . 1 10 3 8 . 1 Parts Lost 151 | . . . . . 1 1 . 1 . . 1 2 . . 11 9 3 5 . 1 5 4 4 14 2 25 62 Power 23 | . . . . . . 1 . . . . . . . . 2 1 . 1 . . . . 1 2 . 6 9 Propulsion 51 | . . . . . 1 . . . . . 1 . . . 4 2 . 4 . 1 2 2 1 6 1 4 22 Utility 51 | . . . . . . . . . . . . 1 . . 2 5 3 . . . 3 1 2 4 1 12 17 Weapon 26 | . . . . . . . . 1 . . . 1 . . 3 1 . . . . . 1 . 2 . 3 14 Highest Loss Streak 17 | . . . . . 1 1 . 1 . . 1 1 . . 8 6 2 5 . 1 5 3 3 3 1 12 17 Average Slot Usage (%) 91 | . 99 100 100 100 97 94 92 89 92 92 92 96 99 100 99 93 97 92 86 94 96 89 90 90 96 85 61 Engine 1 | . 14 14 14 14 9 2 . . . . . . . . . 1 . . . . . . . . . . . Core 2 | . . . . . . 4 7 7 7 7 6 6 6 6 2 1 5 4 2 . 2 3 . . . . 1 Reactor 2 | . . . . . . . . . . . . . . . 3 . . . 2 5 2 . 3 7 8 7 5 Treads 7 | . . . . . . 14 15 15 15 15 11 18 26 26 24 1 . . . . . . . . . . . Wheel 4 | . 15 28 28 28 17 10 7 7 7 7 6 2 . . . . . . . . . . . . . . . Hover 9 | . . . . . . . . . . . . . . . . 24 29 24 23 23 24 22 19 17 20 20 14 Device 7 | . . . . . 12 6 5 8 7 6 7 5 4 2 7 7 . 2 5 5 6 4 11 7 18 16 13 Storage 14 | . 23 28 28 28 18 15 15 15 15 15 19 20 20 20 20 17 17 17 17 17 13 9 9 7 4 7 8 Processor 13 | . . . . . 8 7 7 7 7 7 12 13 13 13 13 10 17 23 23 22 29 26 28 22 21 13 7 Hackware 3 | . . . . . . . . . . . 2 6 6 6 6 6 4 . . . . 6 9 9 4 3 . Protection 7 | . 3 . . . 12 15 17 13 15 15 8 6 7 10 5 3 9 5 4 5 4 4 . 6 6 6 1 Energy Cannon 1 | . . . . . 7 4 . 7 7 4 4 2 4 . . . . . . . . . . . . . 1 Ballistic Gun 5 | . 26 28 28 18 8 8 6 . . 5 6 6 1 12 8 5 . . . . . . . . . . 1 Piercing Weapon 2 | . . . . . . . . . . . . . . . . 3 9 11 4 8 9 8 4 6 3 3 . Naked Turns . | . . . . . . . . . . . . . . . . . . . . . . . . . . . . Heaviest Build 128 | 10 43 43 43 43 61 71 69 71 61 66 80 87 90 84 95 77 77 69 74 86 86 58 82 128 116 117 101 Greatest Support 121 | 20 26 26 26 26 32 32 28 28 28 28 50 120 120 120 106 94 92 97 85 92 92 82 99 121 110 109 105 Greatest Overweight (x) 27 | . 4 1 1 1 3 2 2 2 2 2 3 3 . . 1 3 . 1 1 1 . . 1 27 1 1 5 Average Overweight (x) . | . 2 1 1 1 1 1 2 2 2 2 1 . . . . . . . . . . . . . . . . Largest Inventory Capacity 22 | 6 16 16 16 16 16 16 16 16 16 16 22 22 22 22 22 22 22 22 22 22 22 16 16 16 10 14 20 Average Capacity 17 | 4 12 16 16 16 16 16 16 16 16 16 21 22 22 22 22 22 22 22 22 22 20 16 16 15 10 13 13 Most Carried 22 | 6 12 13 13 16 16 16 16 16 15 16 22 22 22 22 22 22 22 22 22 22 22 16 16 16 10 14 17 Average Carried 16 | 1 8 12 13 15 15 15 15 15 15 15 19 21 21 22 21 19 21 19 20 21 19 15 15 15 9 12 10 Final Capacity 22 | 6 16 16 16 16 16 16 16 16 16 16 22 22 22 22 22 22 22 22 22 22 16 16 16 10 10 14 4 Final Carried 22 | 6 12 13 13 16 16 16 16 15 15 16 22 22 22 22 16 22 22 19 22 20 16 15 16 10 10 9 4 Class Distribution -------------------- 36% | Mutant 20% | Scavenger-Mutant 17% | Hauler-Mutant 9% | Hacker-Mutant 3% | Commander-Mutant Dominant Class ---------------- Mutant | -10/Materials Mutant | -10/Mines Mutant | -10/Exiles Mutant | -9/Mines Mutant | -8/Materials Mutant | -7/Factory Mutant | -7/Lower Caves Mutant | -7/Lower Caves Mutant | -7/Data Miner Mutant | -6/Proximity Caves Hauler-Mutant | -6/Factory Hauler-Mutant | -6/Extension Commander-Mutant | -6/Cetus Scavenger-Mutant | -6/Archives Scavenger-Mutant | -6/Hub_04(d) Hauler-Mutant | -5/Factory Hauler-Mutant | -5/Upper Caves Hauler-Mutant | -5/Upper Caves Hauler-Mutant | -5/Zhirov Hauler-Mutant | -4/Proximity Caves Hauler-Mutant | -4/Factory Scavenger-Mutant | -3/Research Scavenger-Mutant | -3/Testing Hacker-Mutant | -2/Research Scavenger-Mutant | -2/Quarantine Mutant | -2/Section 7 Scavenger-Skirmisher | -1/Access Resources | -11 -10 -10 -10 -9 -8 -7 -7 -7 -7 -6 -6 -6 -6 -6 -6 -5 -5 -5 -5 -4 -4 -3 -3 -2 -2 -2 -1 ----------- Run | Scr Mat Min Exi Min Mat Fac Low Low Dat Pro Fac Ext Cet Arc Hub Fac Upp Upp Zhi Pro Fac Res Tes Res Qua Sec Acc Matter Collected 8510 | 169 434 92 . 58 207 298 207 55 . 120 421 712 248 256 522 734 90 60 115 98 165 55 290 943 430 419 1312 Remotely 26 | . . . . . . . . . . . . . . . . . . . . . . . . . . . 26 Salvage Created 14490 | 87 363 50 . 66 525 555 323 94 . 50 389 876 155 222 1017 1766 . 136 216 425 561 214 700 2317 734 812 1837 Parts 797 | 1 33 8 . 2 31 33 11 3 . 5 11 40 8 11 73 83 . 7 7 21 35 12 33 124 52 45 108 Haulers Intercepted 6 | . 2 . . . 1 . . . . . 1 . . . . 2 . . . . . . . . . . . Recyclers Shooed 12 | . . . . . . . . . . . 1 . . . . 7 . . . . . . . . . 1 3 Parts Field Recycled . | . . . . . . . . . . . . . . . . . . . . . . . . . . . . Retrieved Matter . | . . . . . . . . . . . . . . . . . . . . . . . . . . . . Parts Self-Destructed 29 | . . . . . . . 6 . . 5 . . . . . . 6 . 2 10 . . . . . . . Prevented 7 | . . . . . . . . 3 . . . . . . . . . . . 4 . . . . . . . Kills | -11 -10 -10 -10 -9 -8 -7 -7 -7 -7 -6 -6 -6 -6 -6 -6 -5 -5 -5 -5 -4 -4 -3 -3 -2 -2 -2 -1 ------- Run | Scr Mat Min Exi Min Mat Fac Low Low Dat Pro Fac Ext Cet Arc Hub Fac Upp Upp Zhi Pro Fac Res Tes Res Qua Sec Acc Combat Hostiles Destroyed 167 | . 8 2 . . 7 8 7 1 . 1 3 8 6 2 15 13 . . . 6 8 1 5 25 10 11 20 Melee 61 | . . . . . . . . . . . . . . . . . . . . 1 8 1 5 25 10 11 . Guns 52 | . 8 2 . . 3 3 1 . . 1 1 2 1 2 12 6 . . . . . . . . . . 10 Cannons 18 | . . . . . 4 2 . . . . 2 2 2 . . . . . . . . . . . . . 6 AOE 33 | . . . . . . 2 6 1 . . . 4 3 . 3 7 . . . 5 . . . . . . 2 Classes Destroyed 16 | 1 6 1 . . 1 3 . 1 . . . . . . . . . 1 . . 1 . 1 . . . . Worker 28 | . 1 . . 1 . 2 . . . . 3 1 . . 8 3 . . . . . . 2 3 . 1 3 Builder 17 | . . . . . . 1 . . . . 1 1 . . . 7 . . . . 1 . 1 1 . . 4 Tunneler 3 | . . 1 . . . 1 . . . . . . . . . 1 . . . . . . . . . . . Hauler 6 | . 2 . . . 1 . . . . . 1 . . . . 2 . . . . . . . . . . . Recycler 22 | 1 . . . . . 1 . . . . . 3 . . . 8 . . . . . . 1 3 . 1 4 Minesweeper 1 | . . . . . . . . 1 . . . . . . . . . . . . . . . . . . . Operator 5 | . 1 . . . . . . . . . 1 . . 2 . . . . . . 1 . . . . . . Watcher 30 | . 3 . . . . 3 . . . . 1 1 . . 5 2 . . . . 2 3 1 3 1 1 4 Swarmer 52 | . 6 2 . . . . 7 . . . . 2 4 . 5 5 . . . 5 . . . 4 . 4 8 Saboteur 1 | . . . . . . . . . . . . . . . . . . . . . 1 . . . . . . Grunt 29 | . 2 . . . 2 4 . . . . . 6 1 . 2 3 . . . . 1 . . 2 3 2 1 Researcher 1 | . . . . . . . . . . . . . . . . . . . . . . . 1 . . . . Sentry 30 | . . . . . 5 2 . . . . 1 . . 2 6 1 . . . . 1 1 3 7 . . 1 Hunter 7 | . . . . . . 1 . 1 . . . . . . 1 . . . . . . . 2 . . . 2 Programmer 47 | . . . . . . 1 . . . 1 2 . . . 1 4 . . . 1 5 . . 12 7 5 8 Cetus Guard 1 | . . . . . . . . . . . . . 1 . . . . . . . . . . . . . . Samaritan 7 | . . . . . . . . . . . . . . . . . . 3 . 4 . . . . . . . Thug 2 | . . . . . 1 . . . . . . 1 . . . . . . . . . . . . . . . Best Kill Streak 11 | 1 4 3 . 1 3 5 4 1 . 1 2 3 3 1 5 11 . . . 5 5 2 3 4 4 3 8 Combat Bots Only 6 | . 4 2 . . 3 2 4 1 . 1 1 2 3 1 4 5 . . . 5 2 1 3 3 4 3 6 Max Kills in Single Turn 5 | 1 2 1 . 1 2 4 2 1 . 1 2 3 3 1 5 3 . 1 . 3 1 1 1 1 1 1 2 Gunslinging 1 | . 1 . . . . . . . . . . . . . . 1 . . . . . . . . . . . Exploded 3 | . . . . . . 1 2 1 . . . 2 3 . 2 2 . . . 3 . . . . . . 1 Melee 1 | . . . . . . . . . . . . . . . . . . . . 1 1 1 1 1 1 1 . Uniques/NPCs Destroyed 1 | . . . . 1 . . . . . . . . . . . . . . . . . . . . . . . YI-UF0 (-9/Mines) Combat | -11 -10 -10 -10 -9 -8 -7 -7 -7 -7 -6 -6 -6 -6 -6 -6 -5 -5 -5 -5 -4 -4 -3 -3 -2 -2 -2 -1 -------- Run | Scr Mat Min Exi Min Mat Fac Low Low Dat Pro Fac Ext Cet Arc Hub Fac Upp Upp Zhi Pro Fac Res Tes Res Qua Sec Acc Damage Taken 30685 | . 314 . . 11 247 466 425 262 . 89 301 537 227 408 2958 1835 471 478 . 546 1718 487 721 4998 1438 3646 8102 Core 4220 | . 20 . . . 32 51 79 21 . 14 8 37 . 23 305 271 33 117 . 127 431 77 142 256 321 290 1565 Absorbed by Shields 230 | . . . . . . . . . . . . 157 67 . . . . . . . . 6 . . . . . Redirected to Core 185 | . . . . . . . . . . . . . . . . . . . . . . . . . 185 . . Core Remaining (%) 71 | 100 . . . 92 94 . . . . 76 . . . . 56 . . . . 45 62 . 83 . . 31 . Volleys Fired 436 | 3 44 4 . 6 17 22 7 2 . 2 42 42 13 27 46 50 . . . 2 . . . . 2 1 104 Largest 3 | 2 2 2 . 2 2 2 2 2 . 2 2 2 2 2 2 2 . . . 2 . . . . 1 1 3 Hottest 330 | 60 46 46 . 100 123 132 67 132 . 56 120 147 143 65 275 100 . . . 92 . . . . 300 49 330 Shots Fired 808 | 6 88 8 . 8 34 41 14 4 . 4 67 69 26 54 85 90 . . . 4 . . . . 2 1 203 Gun 586 | 6 88 8 . 4 17 18 7 . . 4 30 36 6 54 83 81 . . . . . . . . . . 144 Cannon 186 | . . . . . 14 23 . 4 . . 35 31 18 . . . . . . . . . . . 2 . 59 Launcher 29 | . . . . . . . 7 . . . 2 2 2 . 2 9 . . . 4 . . . . . 1 . Special 7 | . . . . 4 3 . . . . . . . . . . . . . . . . . . . . . . Kinetic 514 | 3 88 8 . 4 17 13 7 . . 4 30 45 12 54 71 73 . . . . . . . . . . 85 Thermal 118 | . . . . 4 3 5 . . . . 33 12 12 . 12 . . . . . . . . . 2 . 35 Explosive 23 | . . . . . . . 7 . . . 2 2 2 . 2 7 . . . . . . . . . 1 . Electromagnetic 153 | 3 . . . . 14 23 . 4 . . 2 10 . . . 10 . . . 4 . . . . . . 83 Robot Hit Streak 12 | 2 10 8 . 7 9 11 1 5 . 7 6 10 5 12 12 12 . . . 1 . . . . . . 8 Robot Miss Streak 7 | 1 5 1 . 1 4 7 7 . . 3 4 4 2 3 6 5 . . . 2 . . . . . . 5 Penetration Max 1 | . . . . . . . . . . . 1 1 1 . 1 1 . . . . . . . . . . 1 Secondary Targets 10 | . 2 1 . . . . . . . . . . . . 2 1 . . . . . . . . . . 4 Max Gunslinging Chain 1 | . 1 1 . . . . . . . . . . . . 1 1 . . . . . . . . . . 1 Shots Hit Robots 844 | 3 47 6 . 7 26 33 9 5 . 4 30 82 17 36 54 62 5 7 4 10 31 6 26 121 33 56 124 Core Hits 515 | 2 18 3 . 3 20 33 13 2 . 4 23 45 15 9 55 63 . 2 3 12 17 5 16 57 16 20 59 Critical Hits 70 | . 1 . . . . 3 . . . . 3 3 3 4 10 10 2 1 . 2 1 . . 12 6 4 5 Critical Kills 22 | . . . . . . 1 . . . . . 1 2 1 4 3 . . . 1 1 . . 3 2 2 1 Critical Parts Destroyed 43 | . 1 . . . . 2 . . . . 3 . 1 1 6 7 2 1 . 1 . . . 9 4 2 3 Melee Attacks 537 | . . . . . 1 4 6 2 . . . 31 . . 6 27 10 7 4 12 48 11 40 176 53 96 3 Impact 13 | . . . . . 1 4 6 2 . . . . . . . . . . . . . . . . . . . Slashing 64 | . . . . . . . . . . . . . . . 6 . . . . . . . . 14 18 26 . Piercing 426 | . . . . . . . . . . . . . . . . 27 10 7 4 12 48 11 40 162 35 70 . Sneak Attacks 82 | . . . . . . . . 1 . . . 31 . . . 12 . 7 . 6 2 1 6 9 . 6 1 Combat Hostiles . | . . . . . . . . . . . . . . . . . . . . . . . . . . . . Follow-up Attacks 48 | . . . . . . . . . . . . . . . . . 1 1 . . 6 . . 17 8 15 . Damage Inflicted 38656 | 24 635 95 . 98 594 1289 1021 224 . 90 1014 1895 978 860 2744 4946 186 932 412 1190 1681 407 1724 6385 1643 3233 4356 Guns 9465 | 24 635 95 . 59 264 263 103 . . 90 392 710 107 860 1834 1502 . . . . . . . . . . 2527 Cannons 4009 | . . . . . 317 374 . 116 . . 379 764 490 . . . . . . . . . . . . . 1569 Explosions 5352 | . . . . . . 615 393 56 . . 243 421 381 . 910 1805 . . . 270 . . . . . . 258 Melee 19776 | . . . . . . 37 525 52 . . . . . . . 1639 186 932 412 920 1681 407 1724 6385 1643 3233 . Ramming 2 | . . . . . . . . . . . . . . . . . . . . . . . . . . . 2 Kinetic 8343 | . 635 95 . 59 264 231 103 . . 90 392 885 306 860 1507 1315 . . . . . . . . . . 1601 Thermal 3154 | . . . . 39 13 32 . 56 . . 572 340 291 . 327 122 . . . 35 . . . . . . 1327 Explosive 3854 | . . . . . . 615 393 . . . 50 421 381 . 512 1482 . . . . . . . . . . . Electromagnetic 3527 | 24 . . . . 317 374 . 116 . . . 249 . . 398 388 . . . 235 . . . . . . 1426 Impact 614 | . . . . . . 37 525 52 . . . . . . . . . . . . . . . . . . . Slashing 1401 | . . . . . . . . . . . . . . . . . . . . . . . . 192 346 863 . Piercing 17761 | . . . . . . . . . . . . . . . . 1639 186 932 412 920 1681 407 1724 6193 1297 2370 . Highest Corruption 36 | . . . . . . 2 2 2 2 3 . 1 1 1 16 10 10 10 10 10 8 . 3 31 36 28 24 Average Corruption 9 | . . . . . . 1 2 2 2 2 . 1 1 1 1 5 10 10 10 10 4 . 2 21 33 16 12 Corruption Purged . | . . . . . . . . . . . . . . . . . . . . . . . . . . . . Effects 520 | . . . . . . 11 15 6 1 11 . 1 1 1 6 20 16 12 9 15 7 . 3 153 106 33 93 Message Errors 82 | . . . . . . 4 5 1 1 2 . . . 1 2 4 3 3 1 4 2 . 2 23 11 6 7 Matter Fused 78 | . . . . . . . . . . 4 . . . . . 3 4 1 2 3 1 . . 25 13 7 15 Heat Flow Errors 38 | . . . . . . 1 4 1 . . . . . . . 1 2 1 2 2 . . . 11 6 3 4 Energy Discharges 52 | . . . . . . 4 3 2 . 1 . . . . 1 3 2 2 . 2 3 . . 12 8 1 8 Parts Rejected 5 | . . . . . . . . . . . . . . . 1 . . 1 . . . . . 1 1 . 1 Data Loss (minor) 38 | . . . . . . 1 2 1 . 4 . . . . 2 2 1 . . 1 . . . 9 5 1 9 Data Loss (major) 16 | . . . . . . . . . . . . . . . . 3 . 1 . . . . . 5 1 2 4 Misfires 1 | . . . . . . . . . . . . . . . . . . . . . . . . . . . 1 Alerts 3 | . . . . . . . . . . . . . . . . . . . . . . . . 1 1 . 1 Misdirections 124 | . . . . . . . . . . . . . . . . . 3 3 4 3 . . . 41 44 7 19 Targeting Errors 76 | . . . . . . . 1 1 . . . 1 1 . . 4 1 . . . 1 . 1 25 16 6 18 Weapon Failures 7 | . . . . . . 1 . . . . . . . . . . . . . . . . . . . . 6 Overload Shots 4 | . . . . . . . . . . . . . . . 4 . . . . . . . . . . . . Overflow Damage 3026 | . . . . . . 59 235 12 . . 29 4 . . 21 624 . 353 46 151 161 133 191 515 38 435 19 Projectiles 47 | . . . . . . . . . . . 29 2 . . . . . . . . . . . . . . 16 Explosions 152 | . . . . . . 59 . . . . . 2 . . 21 67 . . . . . . . . . . 3 Melee 2827 | . . . . . . . 235 12 . . . . . . . 557 . 353 46 151 161 133 191 515 38 435 . Knockbacks 7 | . . . . . . . 1 1 . . . 1 . . . . . . . . . . . . . . 4 Impact 2 | . . . . . . . 1 1 . . . . . . . . . . . . . . . . . . . Kinetic 5 | . . . . . . . . . . . . 1 . . . . . . . . . . . . . . 4 Secondary . | . . . . . . . . . . . . . . . . . . . . . . . . . . . . Self-Inflicted Damage 531 | . . . . . . . 52 27 . . 35 . 41 . 100 110 . . . 6 . . . . . 11 149 Shots 13 | . . . . . . . 1 1 . . 1 . 1 . 1 4 . . . 1 . . . . . 1 2 Rammed 1 | . . . . . . . . . . . . . . . . . . . . . . . . . . . 1 Targets Rammed 1 | . . . . . . . . . . . . . . . . . . . . . . . . . . . 1 Kicked . | . . . . . . . . . . . . . . . . . . . . . . . . . . . . Crushed . | . . . . . . . . . . . . . . . . . . . . . . . . . . . . Highest Temperature 528 | 20 26 12 . 100 132 182 280 212 . . 204 528 234 5 325 343 235 176 256 224 . . . 267 261 251 387 Average Temperature 91 | 15 8 6 . 41 39 47 96 86 . . 43 129 78 3 148 119 94 90 118 108 . . . 108 98 67 126 Received Heat Transfer 2471 | . 42 . . 6 90 111 12 32 . . 54 152 22 54 246 216 126 . . 54 201 45 18 468 108 198 216 Effects 9 | . . . . . . . . . . . . 4 . . 1 1 . . . . . . . . . . 3 Shutdowns 3 | . . . . . . . . . . . . 1 . . . . . . . . . . . . . . 2 Interference 1 | . . . . . . . . . . . . . . . 1 . . . . . . . . . . . . Matter Decay 3 | . . . . . . . . . . . . 1 . . . 1 . . . . . . . . . . 1 Short Circuit 1 | . . . . . . . . . . . . 1 . . . . . . . . . . . . . . . Damage (minor) 1 | . . . . . . . . . . . . 1 . . . . . . . . . . . . . . . Siege Activations . | . . . . . . . . . . . . . . . . . . . . . . . . . . . . Robots Corrupted 6 | . . . . . . 2 . . . . . . . . . . . . . . . . . . . . 4 Combat Hostiles 3 | . . . . . . 1 . . . . . . . . . . . . . . . . . . . . 2 Parts Fried 33 | . . . . . 1 3 4 5 . . . . . . . . . . . . . . . . . . 20 Impact Corruptions 10 | . . . . . . . 9 1 . . . . . . . . . . . . . . . . . . . Robots Melted . | . . . . . . . . . . . . . . . . . . . . . . . . . . . . Combat Hostiles . | . . . . . . . . . . . . . . . . . . . . . . . . . . . . Parts Melted 5 | . . . . . . . . . . . 1 . . 1 . . . . . . . . . . . 3 . Heat Transferred 3103 | . . . . 240 80 75 . 50 . . 544 407 449 . 322 150 . . . 50 . . . . . . 736 Parts Sabotaged 2 | . . . . . . . . . . . . . . . . . . . . . . . . . 2 . . Parts Stolen . | . . . . . . . . . . . . . . . . . . . . . . . . . . . . Parts Stripped . | . . . . . . . . . . . . . . . . . . . . . . . . . . . . Power Chain Reactions 7 | . . . . . . . . 1 . . . . . . 2 1 . . . 1 . . . . . . 2 Missiles Intercepted . | . . . . . . . . . . . . . . . . . . . . . . . . . . . . Alert | -11 -10 -10 -10 -9 -8 -7 -7 -7 -7 -6 -6 -6 -6 -6 -6 -5 -5 -5 -5 -4 -4 -3 -3 -2 -2 -2 -1 ------- Run | Scr Mat Min Exi Min Mat Fac Low Low Dat Pro Fac Ext Cet Arc Hub Fac Upp Upp Zhi Pro Fac Res Tes Res Qua Sec Acc Peak Influence 1214 | 5 261 103 . 5 309 259 . . . . 518 641 857 531 1042 884 . . . . 949 873 583 1214 918 753 574 Initial 669 | . 3 48 . . 1 49 . . . . 18 128 281 342 115 471 . . . . . 498 482 182 669 366 388 Average 380 | 1 95 52 . 2 176 78 . . . . 127 391 539 457 282 413 . . . . 522 619 352 589 767 501 444 Maximum Alert Level 4 | . 1 . . . 1 1 . . . . 2 2 3 2 3 3 . . . . 3 3 2 4 3 3 2 Low Security (%) 29 | 100 88 100 . 100 45 93 . . . . 80 16 . . 41 . . . . . 32 . . 4 . . . Level 1 26 | . 11 . . . 54 6 . . . . 13 40 39 31 44 54 . . . . 3 . 78 33 . 24 22 Level 2 29 | . . . . . . . . . . . 6 43 27 68 9 40 . . . . 22 73 21 31 21 69 77 Level 3 10 | . . . . . . . . . . . . . 33 . 4 5 . . . . 41 26 . 9 78 5 . Level 4 3 | . . . . . . . . . . . . . . . . . . . . . . . . 20 . . . Level 5 . | . . . . . . . . . . . . . . . . . . . . . . . . . . . . High Security . | . . . . . . . . . . . . . . . . . . . . . . . . . . . . Max Security . | . . . . . . . . . . . . . . . . . . . . . . . . . . . . Squads Dispatched 82 | . 2 . . 1 2 4 . . . . 5 3 . . 11 9 . . . . 7 1 3 11 5 5 13 Investigation 14 | . 1 . . 1 1 2 . . . . 1 1 . . . 2 . . . . 1 . 1 2 . 1 . Extermination 21 | . . . . . . 1 . . . . 2 . . . 1 3 . . . . 2 . . 5 2 2 3 Reinforcement 24 | . 1 . . . 1 1 . . . . 2 1 . . 4 4 . . . . 1 . 2 1 . 1 5 Assault 11 | . . . . . . . . . . . . 1 . . 2 . . . . . 3 1 . . 3 1 . Garrison 12 | . . . . . . . . . . . . . . . 4 . . . . . . . . 3 . . 5 Intercept . | . . . . . . . . . . . . . . . . . . . . . . . . . . . . Construction Impeded 7 | . . . . . . . . . . . 2 1 . . 1 3 . . . . . . . . . . . Haulers Reinforced 1 | . . . . . . . . . . . . . . . . . . . . . . . . . . . 1 Stealth | -11 -10 -10 -10 -9 -8 -7 -7 -7 -7 -6 -6 -6 -6 -6 -6 -5 -5 -5 -5 -4 -4 -3 -3 -2 -2 -2 -1 --------- Run | Scr Mat Min Exi Min Mat Fac Low Low Dat Pro Fac Ext Cet Arc Hub Fac Upp Upp Zhi Pro Fac Res Tes Res Qua Sec Acc Distress Signals 23 | . 1 . . . . 1 . . . . . . 2 . 1 2 . . . 1 1 . 1 3 2 3 5 Communications Jammed 13 | . . . . . . . . . . . . . . . . . . . . . . . . . . . 13 Distress Signals 13 | . . . . . . . . . . . . . . . . . . . . . . . . . . . 13 Times Spotted 597 | . 27 3 . 1 9 22 9 3 . 1 10 30 20 18 39 37 10 3 . 16 45 27 17 83 32 61 74 Peak Tracking Total 23 | . 4 3 . . 3 6 4 1 . 1 2 5 5 2 13 8 6 2 . 8 17 9 7 8 7 23 7 Tactical Retreats 77 | . 7 . . . . 2 2 1 . . . 1 . . 1 5 5 1 . 2 9 6 . 10 7 7 11 Traps | -11 -10 -10 -10 -9 -8 -7 -7 -7 -7 -6 -6 -6 -6 -6 -6 -5 -5 -5 -5 -4 -4 -3 -3 -2 -2 -2 -1 ------- Run | Scr Mat Min Exi Min Mat Fac Low Low Dat Pro Fac Ext Cet Arc Hub Fac Upp Upp Zhi Pro Fac Res Tes Res Qua Sec Acc Traps Triggered 16 | . 1 . . . . 2 . . . . . . . . 1 2 . . . . . 1 4 4 . . 1 Indirectly 1 | . . . . . . . . . . . . . . . 1 . . . . . . . . . . . . Trap Hack Attempts . | . . . . . . . . . . . . . . . . . . . . . . . . . . . . Triggered . | . . . . . . . . . . . . . . . . . . . . . . . . . . . . Disarmed . | . . . . . . . . . . . . . . . . . . . . . . . . . . . . Reprogrammed . | . . . . . . . . . . . . . . . . . . . . . . . . . . . . Reused . | . . . . . . . . . . . . . . . . . . . . . . . . . . . . Traps Extracted . | . . . . . . . . . . . . . . . . . . . . . . . . . . . . Installed . | . . . . . . . . . . . . . . . . . . . . . . . . . . . . Triggered 2 | . . . . . . . . 1 . . . . . . . . . 1 . . . . . . . . . Machines | -11 -10 -10 -10 -9 -8 -7 -7 -7 -7 -6 -6 -6 -6 -6 -6 -5 -5 -5 -5 -4 -4 -3 -3 -2 -2 -2 -1 ---------- Run | Scr Mat Min Exi Min Mat Fac Low Low Dat Pro Fac Ext Cet Arc Hub Fac Upp Upp Zhi Pro Fac Res Tes Res Qua Sec Acc Machines Disabled 70 | . . . . . . 2 . 1 . . 5 5 2 3 34 2 1 . . . . . 5 . 8 . 2 Max in Single Turn 27 | . . . . . . 1 . 1 . . 5 1 . 1 27 1 1 . . . . . 1 . 2 . 1 Garrison Access 4 | . . . . . . 1 . . . . . . . . 1 . . . . . . 1 . . . . 1 Network Hub 1 | . . . . . . . . . . . . . . . 1 . . . . . . . . . . . . Energy Cycler 1 | . . . . . . . . . . . . 1 . . . . . . . . . . . . . . . Machines Sabotaged . | . . . . . . . . . . . . . . . . . . . . . . . . . . . . Garrisons Compromised . | . . . . . . . . . . . . . . . . . . . . . . . . . . . . Overloaded Fab Kills . | . . . . . . . . . . . . . . . . . . . . . . . . . . . . Fab Network Shutdowns 3 | . . . . . . . . . . . 1 . . . . . . . . . 1 . . 1 . . . Hacking | -11 -10 -10 -10 -9 -8 -7 -7 -7 -7 -6 -6 -6 -6 -6 -6 -5 -5 -5 -5 -4 -4 -3 -3 -2 -2 -2 -1 --------- Run | Scr Mat Min Exi Min Mat Fac Low Low Dat Pro Fac Ext Cet Arc Hub Fac Upp Upp Zhi Pro Fac Res Tes Res Qua Sec Acc Machines Accessed 95 | . 2 . . 1 2 7 . . 4 . 7 6 3 1 3 7 . . 7 . 5 3 8 8 13 2 6 Terminals 56 | . 2 . . . 2 5 . . . . 4 6 3 . 2 1 . . . . 3 1 5 6 11 2 3 Fabricators 7 | . . . . . . . . . . . 2 . . . . 1 . . . . 1 . 1 1 . . 1 Repair Stations 8 | . . . . . . 1 . . . . 1 . . . . 1 . . . . . . 2 1 1 . 1 Recycling Units 5 | . . . . . . . . . . . . . . . . 3 . . . . 1 1 . . . . . Scanalyzers 1 | . . . . . . . . . . . . . . . . 1 . . . . . . . . . . . Garrison Access 5 | . . . . . . 1 . . . . . . . . 1 . . . . . . 1 . . 1 . 1 Total Hacks 314 | . 5 . . 1 6 13 . . 27 . 25 17 9 25 12 21 . . 24 . 16 4 30 25 41 5 8 Successful 179 | . 2 . . 1 4 4 . . 27 . 11 7 3 25 6 13 . . 24 . 6 2 14 10 17 . 3 Failed 135 | . 3 . . . 2 9 . . . . 14 10 6 . 6 8 . . . . 10 2 16 15 24 5 5 Catastrophic 26 | . . . . . . 3 . . . . 3 1 . . 1 2 . . . . 2 . 2 1 6 2 3 Database Lockouts . | . . . . . . . . . . . . . . . . . . . . . . . . . . . . Manual 71 | . 5 . . . 2 3 . . . . 17 8 1 . 6 2 . . . . 5 2 4 2 14 . . Terminals 170 | . 5 . . . 6 8 . . . . 19 17 9 . 9 4 . . . . 12 2 17 17 36 5 4 Fabricators 19 | . . . . . . . . . . . 4 . . . . 4 . . . . 2 . 3 4 . . 2 Repair Stations 27 | . . . . . . 3 . . . . 2 . . . . 3 . . . . . . 10 4 4 . 1 Recycling Units 8 | . . . . . . . . . . . . . . . . 5 . . . . 2 1 . . . . . Scanalyzers 5 | . . . . . . . . . . . . . . . . 5 . . . . . . . . . . . Garrison Access 8 | . . . . . . 2 . . . . . . . . 3 . . . . . . 1 . . 1 . 1 Terminal Hacks 139 | . 1 . . 1 4 1 . . 27 . 7 7 3 25 5 1 . . 24 . 2 1 6 6 16 . 2 Record 57 | . . . . . . . . . 11 . 1 . 2 25 1 . . . 12 . . . . . 5 . . Part Schematic 12 | . . . . . . . . . 7 . 1 . . . . . . . 4 . . . . . . . . Robot Schematic 7 | . . . . . . . . . 6 . . . . . 1 . . . . . . . . . . . . Robot Analysis 4 | . . . . . . . . . . . . . . . . . . . 4 . . . . . . . . Prototype ID Bank 11 | . . . . . 1 . . . 3 . . 1 . . . . . . 4 . . . 1 1 . . . Open Door 4 | . . . . 1 . . . . . . . . 1 . . . . . . . . . 1 . 1 . . Level Access Points 4 | . . . . . . . . . . . 1 1 . . 1 . . . . . 1 . . . . . . Branch Access Points 8 | . . . . . 2 1 . . . . . . . . . 1 . . . . 1 1 . 1 1 . . Fabricator Index 1 | . . . . . . . . . . . 1 . . . . . . . . . . . . . . . . Alert Level 11 | . 1 . . . . . . . . . 1 2 . . 1 . . . . . . . 1 2 2 . 1 Unreport Threat 13 | . . . . . . . . . . . 2 3 . . 1 . . . . . . . 2 2 3 . . Locate Traps 2 | . . . . . 1 . . . . . . . . . . . . . . . . . . . 1 . . Recall Extermination 1 | . . . . . . . . . . . . . . . . . . . . . . . . . . . 1 Registered Prototypes 1 | . . . . . . . . . . . . . . . . . . . . . . . 1 . . . . Zone Layout 3 | . . . . . . . . . . . . . . . . . . . . . . . . . 3 . . Fabricator Hacks 10 | . . . . . . . . . . . 4 . . . . 1 . . . . 2 . 1 2 . . . Load Schematic 6 | . . . . . . . . . . . 2 . . . . 1 . . . . 1 . 1 1 . . . Build 4 | . . . . . . . . . . . 2 . . . . . . . . . 1 . . 1 . . . Repair Station Hacks 12 | . . . . . . 2 . . . . . . . . . 2 . . . . . . 6 2 . . . Scan Component 7 | . . . . . . 1 . . . . . . . . . 1 . . . . . . 4 1 . . . Repair 5 | . . . . . . 1 . . . . . . . . . 1 . . . . . . 2 1 . . . Recycling Unit Hacks 7 | . . . . . . . . . . . . . . . . 5 . . . . 2 . . . . . . Report Inventory 4 | . . . . . . . . . . . . . . . . 3 . . . . 1 . . . . . . Retrieve Components 3 | . . . . . . . . . . . . . . . . 2 . . . . 1 . . . . . . Scanalyzer 4 | . . . . . . . . . . . . . . . . 4 . . . . . . . . . . . Insert Component 2 | . . . . . . . . . . . . . . . . 2 . . . . . . . . . . . Analyze 2 | . . . . . . . . . . . . . . . . 2 . . . . . . . . . . . Garrison Access Hacks 4 | . . . . . . 1 . . . . . . . . 1 . . . . . . 1 . . . . 1 Seal Access 3 | . . . . . . 1 . . . . . . . . . . . . . . . 1 . . . . 1 Coupler Status 1 | . . . . . . . . . . . . . . . 1 . . . . . . . . . . . . Unauthorized Hacks 3 | . 1 . . . . . . . . . . . . . . . . . . . . . 1 . 1 . . Terminals 3 | . 1 . . . . . . . . . . . . . . . . . . . . . 1 . 1 . . Track 1 | . 1 . . . . . . . . . . . . . . . . . . . . . . . . . . Botnet 2 | . . . . . . . . . . . . . . . . . . . . . . . 1 . 1 . . Fabricators . | . . . . . . . . . . . . . . . . . . . . . . . . . . . . Repair Stations . | . . . . . . . . . . . . . . . . . . . . . . . . . . . . Recycling Units . | . . . . . . . . . . . . . . . . . . . . . . . . . . . . Scanalyzers . | . . . . . . . . . . . . . . . . . . . . . . . . . . . . Garrison Access . | . . . . . . . . . . . . . . . . . . . . . . . . . . . . Data Cores Recovered . | . . . . . . . . . . . . . . . . . . . . . . . . . . . . Used . | . . . . . . . . . . . . . . . . . . . . . . . . . . . . Hacking Detections 68 | . 2 . . . 2 5 . . . . 7 6 3 . 3 4 . . . . 3 1 8 6 11 2 5 Full Trace Events 8 | . . . . . 1 2 . . . . 1 1 . . . 1 . . . . 1 . . . . 1 . Feedback Events 1 | . . . . . . . . . . . . . . . . 1 . . . . . . . . . . . Corruption 1 | . . . . . . . . . . . . . . . . 1 . . . . . . . . . . . Feedback Blocked . | . . . . . . . . . . . . . . . . . . . . . . . . . . . . Robot Schematics Acquired 7 | . . . . . . . . . 6 . . . . . 1 . . . . . . . . . . . . Robots Built . | . . . . . . . . . . . . . . . . . . . . . . . . . . . . Matter . | . . . . . . . . . . . . . . . . . . . . . . . . . . . . Time . | . . . . . . . . . . . . . . . . . . . . . . . . . . . . Total Robot Build Rating . | . . . . . . . . . . . . . . . . . . . . . . . . . . . . Part Schematics Acquired 14 | . . . . . . . . . 7 . 1 . . . . 2 . . 4 . . . . . . . . Parts Built 4 | . . . . . . . . . . . 2 . . . . . . . . . 1 . . 1 . . . Matter 1023 | . . . . . . . . . . . 420 . . . . . . . . . 285 . . 318 . . . Time 343 | . . . . . . . . . . . 107 . . . . . . . . . 152 . . 84 . . . Total Part Build Rating 18 | . . . . . . . . . . . 7 . . . . . . . . . 5 . . 6 . . . Parts Repaired 5 | . . . . . . 1 . . . . . . . . . 1 . . . . . . 2 1 . . . Time 168 | . . . . . . 44 . . . . . . . . . 54 . . . . . . 62 8 . . . Parts Recycled . | . . . . . . . . . . . . . . . . . . . . . . . . . . . . Recycled Matter . | . . . . . . . . . . . . . . . . . . . . . . . . . . . . Retrieved Matter . | . . . . . . . . . . . . . . . . . . . . . . . . . . . . Retrieved Components 16 | . . . . . . . . . . . . . . . . 13 . . . . 3 . . . . . . Parts Scanalyzed 2 | . . . . . . . . . . . . . . . . 2 . . . . . . . . . . . Part Schematics Acquired 2 | . . . . . . . . . . . . . . . . 2 . . . . . . . . . . . Parts Damaged . | . . . . . . . . . . . . . . . . . . . . . . . . . . . . Bothacking | -11 -10 -10 -10 -9 -8 -7 -7 -7 -7 -6 -6 -6 -6 -6 -6 -5 -5 -5 -5 -4 -4 -3 -3 -2 -2 -2 -1 ------------ Run | Scr Mat Min Exi Min Mat Fac Low Low Dat Pro Fac Ext Cet Arc Hub Fac Upp Upp Zhi Pro Fac Res Tes Res Qua Sec Acc Used RIF Installer . | . . . . . . . . . . . . . . . . . . . . . . . . . . . . Robots Hacked 2 | . . . . . . . . . . . . . . . . . . . . . . . . . . . 2 Non-combat 2 | . . . . . . . . . . . . . . . . . . . . . . . . . . . 2 Combat . | . . . . . . . . . . . . . . . . . . . . . . . . . . . . Robot Hacks Applied 2 | . . . . . . . . . . . . . . . . . . . . . . . . . . . 2 parse_system 1 | . . . . . . . . . . . . . . . . . . . . . . . . . . . 1 find_station 1 | . . . . . . . . . . . . . . . . . . . . . . . . . . . 1 Relay Couplers Released 2 | . . . . . . . . . . . . . . . . . . . . . . . . . 2 . . Programmers 2 | . . . . . . . . . . . . . . . . . . . . . . . . . 2 . . Robots Rewired 16 | . . . . . . . . . . . . 16 . . . . . . . . . . . . . . . Allies Hacked . | . . . . . . . . . . . . . . . . . . . . . . . . . . . . Hacks Repelled . | . . . . . . . . . . . . . . . . . . . . . . . . . . . . Allies | -11 -10 -10 -10 -9 -8 -7 -7 -7 -7 -6 -6 -6 -6 -6 -6 -5 -5 -5 -5 -4 -4 -3 -3 -2 -2 -2 -1 -------- Run | Scr Mat Min Exi Min Mat Fac Low Low Dat Pro Fac Ext Cet Arc Hub Fac Upp Upp Zhi Pro Fac Res Tes Res Qua Sec Acc Total Allies 52 | . . . . . . . . . . 1 . 26 3 . . . . . . . . . . . . 7 15 Largest Group 13 | . . . . . . . . . . 1 . 13 13 3 1 . . . . . . . . . . 2 8 Highest-Rated Group 701 | . . . . . . . . . . 94 . 506 701 268 94 . . . . . . . . . . 27 113 Highest-Rated Ally 156 | . . . . . . . . . . 94 . 156 156 143 94 . . . . . . . . . . 14 15 Total Orders . | . . . . . . . . . . . . . . . . . . . . . . . . . . . . Ally Attacks 420 | . . . . . . . . . . . . 166 121 23 6 . . . . . . . . . . 16 88 Total Damage 9657 | . . . . . . . . . . . . 3563 3249 881 221 . . . . . . . . . . 420 1323 Kills 58 | . . . . . . . . . . . . 27 18 2 1 . . . . . . . . . . . 10 Allies Corrupted 1 | . . . . . . . . . . . . 1 . . . . . . . . . . . . . . . Allies Melted . | . . . . . . . . . . . . . . . . . . . . . . . . . . . . Intel | -11 -10 -10 -10 -9 -8 -7 -7 -7 -7 -6 -6 -6 -6 -6 -6 -5 -5 -5 -5 -4 -4 -3 -3 -2 -2 -2 -1 ------- Run | Scr Mat Min Exi Min Mat Fac Low Low Dat Pro Fac Ext Cet Arc Hub Fac Upp Upp Zhi Pro Fac Res Tes Res Qua Sec Acc Robot Analysis Total 4 | . . . . . . . . . . . . . . . . . . . 4 . . . . . . . . Derelict Logs Recovered 7 | . . 1 . 2 . . 2 . . . . . . . . . 1 . . 1 . . . . . . . Drone Launches 3 | . . . . . . . . . . . . . . . . . . . . . . . . . . 3 . Drone Recoveries . | . . . . . . . . . . . . . . . . . . . . . . . . . . . . Exploration | -11 -10 -10 -10 -9 -8 -7 -7 -7 -7 -6 -6 -6 -6 -6 -6 -5 -5 -5 -5 -4 -4 -3 -3 -2 -2 -2 -1 ------------- Run | Scr Mat Min Exi Min Mat Fac Low Low Dat Pro Fac Ext Cet Arc Hub Fac Upp Upp Zhi Pro Fac Res Tes Res Qua Sec Acc Turns Passed 22420 | 160 801 504 273 258 410 1737 1451 821 101 758 1118 1130 609 496 1153 1535 356 266 142 440 580 352 619 2639 1196 725 1790 Spaces Moved 18576 | 136 629 318 274 218 265 1070 754 531 85 506 744 588 337 255 456 1266 544 364 208 840 857 532 619 2501 1355 705 1619 Core 351 | 13 . . . . . . . . . . . . . . . . . . . . . . . 2 . . 336 Treads 1478 | . . . . . . 7 . . . 107 7 318 337 255 447 . . . . . . . . . . . . Legs 336 | 76 . . . . . . . . . . . . . . . 192 . . . . . . . . . . 68 Wheels 5590 | 47 629 318 274 218 265 1063 754 531 85 399 737 270 . . . . . . . . . . . . . . . Hover 10821 | . . . . . . . . . . . . . . . 9 1074 544 364 208 840 857 532 619 2499 1355 705 1215 Flight . | . . . . . . . . . . . . . . . . . . . . . . . . . . . . Fastest Speed 40 | 50 80 100 100 100 100 110 120 120 120 120 120 120 160 160 156 50 50 50 40 40 44 46 44 52 52 46 46 Average Speed 86 | 99 105 100 100 100 108 118 120 120 120 133 120 141 160 160 162 82 55 65 50 45 45 47 53 65 57 53 77 Slowest Speed 1400 | 120 120 100 100 100 130 200 120 120 120 185 205 170 160 160 180 210 58 105 95 90 50 48 106 1400 123 110 300 Overloaded Moves . | . . . . . . . . . . . . . . . . . . . . . . . . . . . . Propulsion Burnouts . | . . . . . . . . . . . . . . . . . . . . . . . . . . . . Robots Hopped . | . . . . . . . . . . . . . . . . . . . . . . . . . . . . Cave-ins Triggered 1 | . . . . . . . . . . . . . . . . . . . . . . . . . . 1 . Teleports 1 | . . . . . . . . . . . . . . . . . . . . . . . . 1 . . . Exploration Rate (%) 53 | 7 79 68 68 45 24 28 75 70 70 58 18 78 87 97 51 25 57 51 62 67 24 16 60 58 93 35 39 Regions Visited 27 Branch Regions 18 Pre-discovered Areas 6 | . . . . . . . 1 . 1 . . . . . . . . . 3 1 . . . . . . . Known Exits Taken 20 | . . . . . 1 1 1 1 1 1 1 1 1 1 1 1 . . 1 1 1 1 1 1 1 1 . Unknown Exits Taken 7 | 1 1 1 1 1 . . . . . . . . . . . . 1 1 . . . . . . . . . Scrap Searched 19 | . . 1 . 2 . . 5 3 . 3 . . . . . . 2 1 . 2 . . . . . . . Spaces Dug 119 | . . . . . 1 4 . . . . 14 1 . . 8 2 2 . . 2 11 2 6 36 6 24 . Terrain Destroyed 737 | . . . . . 1 23 87 6 . . 64 35 39 7 189 115 2 . . 4 11 2 6 36 19 34 57 Melee 101 | . . . . . 1 3 . . . . . . . . 6 2 2 . . 2 11 2 6 36 6 24 . Projectile 121 | . . . . . . 1 . . . . 20 8 1 7 19 26 . . . . . . . . 3 . 36 AOE 515 | . . . . . . 19 87 6 . . 44 27 38 . 164 87 . . . 2 . . . . 10 10 21 Terrain Rammed . | . . . . . . . . . . . . . . . . . . . . . . . . . . . . Walls Destroyed . | . . . . . . . . . . . . . . . . . . . . . . . . . . . . Machines Disabled . | . . . . . . . . . . . . . . . . . . . . . . . . . . . . Actions | -11 -10 -10 -10 -9 -8 -7 -7 -7 -7 -6 -6 -6 -6 -6 -6 -5 -5 -5 -5 -4 -4 -3 -3 -2 -2 -2 -1 --------- Run | Scr Mat Min Exi Min Mat Fac Low Low Dat Pro Fac Ext Cet Arc Hub Fac Upp Upp Zhi Pro Fac Res Tes Res Qua Sec Acc Total 23429 | 152 698 497 273 252 351 1486 1276 705 84 583 896 778 381 288 766 1622 585 380 243 878 998 616 849 3240 1688 899 1965 Wait 2834 | . 1 175 . 7 39 331 497 164 . 53 59 43 5 1 230 203 24 . . 6 69 42 105 454 194 62 70 Move 18548 | 135 628 317 273 217 264 1069 753 530 84 505 743 587 336 254 455 1265 543 363 207 839 856 531 618 2500 1354 703 1619 Hop . | . . . . . . . . . . . . . . . . . . . . . . . . . . . . Pick Up 271 | 6 10 1 . 12 10 12 2 . . 5 18 12 5 . . 29 2 3 6 7 11 6 14 31 16 9 44 Fast Attach 225 | 7 3 . . . 1 7 1 . . 4 5 8 4 2 3 7 3 2 9 . 6 2 26 25 29 19 52 Attach 130 | . . . . . 5 1 1 1 . . 3 2 . . 6 11 2 5 2 5 5 5 8 14 10 12 32 Detach 27 | . . . . . . . . . . . . . 2 . . . . . 3 . . 1 5 3 3 2 8 Swap 200 | . 4 . . 1 7 16 6 6 . 5 12 32 7 2 18 14 2 . . 1 4 1 4 38 8 6 6 Drop 288 | 1 8 . . 9 7 16 3 . . 9 14 21 9 2 2 16 1 1 12 7 9 7 30 30 34 14 26 Fire 436 | 3 44 4 . 6 17 22 7 2 . 2 42 42 13 27 46 50 . . . 2 . . . . 2 1 104 Melee 448 | . . . . . 1 4 6 2 . . . 31 . . 6 27 8 6 4 11 38 9 39 145 38 70 3 Ram 1 | . . . . . . . . . . . . . . . . . . . . . . . . . . . 1 Kick . | . . . . . . . . . . . . . . . . . . . . . . . . . . . . Crush . | . . . . . . . . . . . . . . . . . . . . . . . . . . . . Escape Stasis 21 | . . . . . . 8 . . . . . . . . . . . . . . . 12 . . . 1 . Rewire . | . . . . . . . . . . . . . . . . . . . . . . . . . . . . Trap . | . . . . . . . . . . . . . . . . . . . . . . . . . . . . Miscellaneous . | . . . . . . . . . . . . . . . . . . . . . . . . . . . . Route ------- -11/Scrapyard -10/Materials (discovered 3 exits: [*Mat] / [*Min x2]) -10/Mines (discovered 2 exits: [*Mat] / [*Exi]) -10/Exiles -9/Mines -8/Materials -7/Factory (discovered 3 exits: Sto / *Low x2) -7/Lower Caves -7/Lower Caves -7/Data Miner -6/Proximity Caves -6/Factory (discovered 5 exits: Fac x4 / *Ext) -6/Extension (discovered 3 exits: *Fac x2 / *Cet) -6/Cetus (discovered 2 exits: *Fac / *Arc) -6/Archives (discovered 3 exits: *Fac / *Hub x2) -6/Hub_04(d) (discovered 4 exits: *Fac x4) -5/Factory (discovered 2 exits: *Upp x2) -5/Upper Caves -5/Upper Caves (discovered 2 exits: *Fac / *Zhi) -5/Zhirov -4/Proximity Caves -4/Factory (discovered 6 exits: *Res x4 / *Upp x2) -3/Research (discovered 3 exits: Arm / *Tes x2) -3/Testing -2/Research (discovered 5 exits: *Acc x3 / *Qua x2) -2/Quarantine -2/Section 7 -1/Access History --------- Turn | Location | Event 9 | -11/Scrapyard | Discovered new exit (range 16) 161 | -11/Scrapyard | Entered Materials 303 | -10/Materials | Build established: Mutant 580 | -10/Materials | Discovered new exit (range 10) 620 | -10/Materials | Discovered new exit (range 10) 800 | -10/Materials | Discovered new exit (range 9) 962 | -10/Materials | Entered Mines 983 | -10/Mines | Met a Derelict bent on vengeance 1242 | -10/Mines | Learned Materials terminal intel 1317 | -10/Mines | Discovered new exit (range 6) 1460 | -10/Mines | Deemed a non-threat by the Exiles lab entrance 1461 | -10/Mines | Discovered new exit (range 5) 1466 | -10/Mines | Entered Exiles 1491 | -10/Exiles | Met 8R-AWN 1509 | -10/Exiles | Met EX-HEX 1538 | -10/Exiles | Met EX-BIN 1549 | -10/Exiles | Met EX-DEC 1645 | -10/Exiles | Visited The Gauntlet 1727 | -10/Exiles | Discovered new exit (range 14) 1739 | -10/Exiles | Entered Mines 1798 | -9/Mines | YI-UF0 nonchalantly dropped a Grenade Launcher on the ground 1804 | -9/Mines | Destroyed YI-UF0 1821 | -9/Mines | A weapon hastily lodged in a ceiling crevice suddenly fell to the ground 1884 | -9/Mines | Learned Materials security intel 1905 | -9/Mines | Received a Rocket Launcher from a helpful Derelict 1930 | -9/Mines | Learned Materials emergency access door positions 1948 | -9/Mines | Discovered new exit (range 7) 1959 | -9/Mines | Met a Derelict shopkeep closing up shop 1997 | -9/Mines | Entered Materials 1997 | -8/Materials | Evolved 4 slots: Utility x4 2000 | -8/Materials | Loaded intel: 12 terminal locations 2321 | -8/Materials | Discovered new exit (range 14) 2405 | -8/Materials | Identified exit to Factory 2407 | -8/Materials | Entered Factory 2407 | -7/Factory | Evolved 2 slots: Propulsion x2 2900 | -7/Factory | Identified exit to Storage 2900 | -7/Factory | Identified exit to Lower Caves 3530 | -7/Factory | Repaired Imp. Medium Armor Plating 4144 | -7/Factory | Entered Lower Caves 4191 | -7/Lower Caves | Learned location of Zion (-6) 4244 | -7/Lower Caves | Learned Factory terminal intel 4303 | -7/Lower Caves | Encountered a Warlord checkpoint 4464 | -7/Lower Caves | Spotted B-75 Beast 5590 | -7/Lower Caves | Discovered new exit (range 5) 5593 | -7/Lower Caves | Identified exit to Lower Caves 5595 | -7/Lower Caves | Entered another Lower Caves area 6152 | -7/Lower Caves | Spotted B-75 Beast 6226 | -7/Lower Caves | Discovered new exit (range 15) 6270 | -7/Lower Caves | Identified exit to Data Miner 6388 | -7/Lower Caves | Attacked by a delusional Derelict stockpiling Unaware 6416 | -7/Lower Caves | Entered Data Miner 6416 | -7/Data Miner | Discovered new exit (range 6) 6439 | -7/Data Miner | Met Data Miner 6464 | -7/Data Miner | Learned location of Section 7 (-2) 6464 | -7/Data Miner | Acquired the access code to Warlord's prototype stash 6487 | -7/Data Miner | Received God Mode back door access code from Data Miner 6516 | -7/Data Miner | Identified exit to Proximity Caves 6517 | -7/Data Miner | Entered Proximity Caves 6996 | -6/Proximity Caves | Escorted by Enhanced Grunt 7041 | -6/Proximity Caves | Found Prototype Device 7041 | -6/Proximity Caves | Identified Exp. Thermal Shield 7121 | -6/Proximity Caves | Discovered new exit (range 12) 7273 | -6/Proximity Caves | Identified exit to Factory 7275 | -6/Proximity Caves | Entered Factory 7275 | -6/Factory | Evolved 2 slots: Utility x2 7276 | -6/Factory | Loaded intel: 22 terminal locations 7402 | -6/Factory | Discovered new exit (range 20) 7460 | -6/Factory | Identified exit to Extension 7886 | -6/Factory | Build established: Hauler-Mutant 7891 | -6/Factory | Identified exit to Factory 7932 | -6/Factory | Fabricated Kinetic Spear? 7960 | -6/Factory | Fabricated Datajack? 8042 | -6/Factory | Found Prototype Processor 8042 | -6/Factory | Identified Exp. Signal Interpreter 8178 | -6/Factory | Local fabrication network quarantined 8393 | -6/Factory | Entered Extension 8439 | -6/Extension | Rescued a captive Derelict 8561 | -6/Extension | Rescued a captive Derelict 8624 | -6/Extension | Rescued a captive Derelict 8624 | -6/Extension | Rescued a captive Derelict 8645 | -6/Extension | Rescued A7 8666 | -6/Extension | Rescued a captive Derelict 8666 | -6/Extension | Rescued a captive Derelict 8813 | -6/Extension | Spotted B-75 Beast 8821 | -6/Extension | Spotted B-75 Beast 8832 | -6/Extension | Allies destroyed B-75 Beast 8848 | -6/Extension | Allies destroyed B-75 Beast 8893 | -6/Extension | Disrupted transfer network 9035 | -6/Extension | Rescued a captive Derelict 9093 | -6/Extension | First assault squad dispatched 9113 | -6/Extension | Incoming assault squad redirected 9166 | -6/Extension | Incoming investigation squad redirected 9219 | -6/Extension | Energy Cycler disabled 9219 | -6/Extension | Rescued a captive Derelict 9219 | -6/Extension | Rescued a captive Derelict 9225 | -6/Extension | Rescued a captive Derelict 9475 | -6/Extension | Discovered new exit (range 6) 9514 | -6/Extension | Identified exit to Cetus 9523 | -6/Extension | Entered Cetus 9523 | -6/Cetus | Accompanied by 13 allies (A7) 9528 | -6/Cetus | Acquired a Cetus Manufacturing Module code from A7 9547 | -6/Cetus | Spotted Cetus Guard 9547 | -6/Cetus | Spotted Cetus Guard 9550 | -6/Cetus | Spotted Cetus Guard 9556 | -6/Cetus | Spotted Cetus Guard 9561 | -6/Cetus | Allies destroyed Cetus Guard 9565 | -6/Cetus | Allies destroyed Cetus Guard 9571 | -6/Cetus | Destroyed Cetus Guard 9573 | -6/Cetus | Allies destroyed Cetus Guard 9619 | -6/Cetus | Build established: Commander-Mutant 9714 | -6/Cetus | Started Cetus Manufacturing Module 9739 | -6/Cetus | Manufactured an Enhanced Grunt 9764 | -6/Cetus | Manufactured an Enhanced Grunt 9767 | -6/Cetus | Escorted A7 to Cetus Mainframe 9789 | -6/Cetus | Manufactured an Enhanced Grunt 9791 | -6/Cetus | Cetus Manufacturing Module disabled 9884 | -6/Cetus | Discovered new exit (range 16) 9907 | -6/Cetus | Identified exit to Archives 9943 | -6/Cetus | Spotted Cetus Guard 9944 | -6/Cetus | Spotted Cetus Guard 9947 | -6/Cetus | Spotted Cetus Guard 9953 | -6/Cetus | Spotted Cetus Guard 9953 | -6/Cetus | Allies destroyed Cetus Guard 9960 | -6/Cetus | Allies destroyed Cetus Guard 9961 | -6/Cetus | Allies destroyed Cetus Guard 9966 | -6/Cetus | Allies destroyed Cetus Guard 9968 | -6/Cetus | Discovered exit to Factory (range 16) 9978 | -6/Cetus | Met Revision 17 10132 | -6/Cetus | Entered Archives 10132 | -6/Archives | Accompanied by 3 allies (A7) 10137 | -6/Archives | Received a hacking code to weaken MAIN.C 10251 | -6/Archives | Discovered new exit (range 16) 10262 | -6/Archives | Unable to access archive contents 10276 | -6/Archives | Build established: Scavenger-Mutant 10280 | -6/Archives | Unable to access archive contents 10302 | -6/Archives | Unable to access archive contents 10324 | -6/Archives | Unable to access archive contents 10331 | -6/Archives | Discovered new exit (range 16) 10389 | -6/Archives | Discovered exit to Factory (range 14) 10452 | -6/Archives | Identified exit to Hub_04(d) 10628 | -6/Archives | Entered Hub_04(d) 10628 | -6/Hub_04(d) | Accompanied by 1 ally 10628 | -6/Hub_04(d) | Discovered exit to Factory (range 10) 11328 | -6/Hub_04(d) | First assault squad dispatched 11345 | -6/Hub_04(d) | Incoming assault squad redirected 11612 | -6/Hub_04(d) | Garrison activated, responded to threat 11728 | -6/Hub_04(d) | Network Hub disabled 11756 | -6/Hub_04(d) | Spotted Lightning 11765 | -6/Hub_04(d) | Spotted Lightning 11770 | -6/Hub_04(d) | Spotted Lightning 11770 | -6/Hub_04(d) | Spotted Lightning 11770 | -6/Hub_04(d) | Spotted Lightning 11771 | -6/Hub_04(d) | Spotted Lightning 11772 | -6/Hub_04(d) | Spotted Lightning 11772 | -6/Hub_04(d) | Spotted Lightning 11773 | -6/Hub_04(d) | Spotted Lightning 11774 | -6/Hub_04(d) | System corruption reached 10% 11781 | -6/Hub_04(d) | Entered Factory 11781 | -5/Factory | Evolved 2 slots: Propulsion x1, Utility x1 11811 | -5/Factory | Lost 8 parts (1p3n1u3w) 12048 | -5/Factory | Build established: Hauler-Mutant 12311 | -5/Factory | Repaired Centrium Medium Armor Plating 12521 | -5/Factory | Discovered new exit (range 13) 12566 | -5/Factory | Identified exit to Upper Caves 12615 | -5/Factory | Build established: Hacker-Scout 13046 | -5/Factory | Build established: Hauler-Scout 13055 | -5/Factory | Spotted B-75 Beast 13220 | -5/Factory | System corruption reached 10% 13290 | -5/Factory | Lost 6 parts (1p1n3u1w) 13316 | -5/Factory | Entered Upper Caves 13430 | -5/Upper Caves | Learned Factory terminal intel 13526 | -5/Upper Caves | Build established: Hauler-Mutant 13631 | -5/Upper Caves | Discovered new exit (range 13) 13633 | -5/Upper Caves | Encountered a Warlord checkpoint 13672 | -5/Upper Caves | Entered another Upper Caves area 13698 | -5/Upper Caves | Discovered new exit (range 12) 13818 | -5/Upper Caves | Lost 5 parts (1p4n) 13936 | -5/Upper Caves | Discovered new exit (range 5) 13938 | -5/Upper Caves | Entered Zhirov 13938 | -5/Zhirov | Discovered new exit (range 3) 13948 | -5/Zhirov | Met Zhirov 13960 | -5/Zhirov | Learned location of Quarantine (-2) 13960 | -5/Zhirov | Learned location of Testing (-3) 13960 | -5/Zhirov | Learned location of Command (-1) 13971 | -5/Zhirov | Zhirov requested help retrieving the SGEMP Prototype 13985 | -5/Zhirov | Found Alien Artifact 13985 | -5/Zhirov | Identified Integrated Dissipator 13985 | -5/Zhirov | Installed Integrated Dissipator, increased core heat dissipation (+20) 13995 | -5/Zhirov | Found Alien Artifact 14053 | -5/Zhirov | Found Hvy. Reflective Plating 14080 | -5/Zhirov | Identified exit to Proximity Caves 14080 | -5/Zhirov | Entered Proximity Caves 14163 | -4/Proximity Caves | Spotted B-86 Titan 14244 | -4/Proximity Caves | Spotted B-86 Titan 14378 | -4/Proximity Caves | Core integrity fell below 50% 14475 | -4/Proximity Caves | Snuck into a huge 0b10 base via the rear entrance 14493 | -4/Proximity Caves | Derelicts attacked a huge 0b10 base 14513 | -4/Proximity Caves | Discovered new exit (range 15) 14520 | -4/Proximity Caves | Identified exit to Factory 14520 | -4/Proximity Caves | Entered Factory 14520 | -4/Factory | Evolved 2 slots: Utility x2 14521 | -4/Factory | Loaded intel: 20 terminal locations 14562 | -4/Factory | Found Gamma Bomb Array 14577 | -4/Factory | Spotted B-86 Titan 14729 | -4/Factory | Local fabrication network quarantined 14801 | -4/Factory | Fabricated Lgt. Regenerative Plating? 14811 | -4/Factory | First assault squad dispatched 14951 | -4/Factory | Incoming assault squad redirected 14975 | -4/Factory | Lost 5 parts (2n3u) 15009 | -4/Factory | Incoming investigation squad redirected 15020 | -4/Factory | Identified exit to Upper Caves 15020 | -4/Factory | Identified exit to Research 15100 | -4/Factory | Entered Research 15100 | -3/Research | Evolved 2 slots: Utility x2 15294 | -3/Research | Identified exit to Armory 15294 | -3/Research | Identified exit to Testing 15350 | -3/Research | First assault squad dispatched 15366 | -3/Research | Incoming assault squad redirected 15452 | -3/Research | Entered Testing 15482 | -3/Testing | Lost 3 parts (2n1w) 15504 | -3/Testing | Found Prototype Energy Cannon 15504 | -3/Testing | Identified Imp. Potential Cannon 15513 | -3/Testing | Found Imp. Potential Cannon 15631 | -3/Testing | Build established: Scavenger-Mutant 15655 | -3/Testing | Repaired Kinetic Spear 15820 | -3/Testing | Lost 3 parts (1p1n1u) 15898 | -3/Testing | Found Prototype Protection 15898 | -3/Testing | Identified Hvy. Regenerative Plating 15912 | -3/Testing | Found Prototype Protection 15913 | -3/Testing | Found Prototype Protection 15948 | -3/Testing | Found Prototype Device 15948 | -3/Testing | Identified Exp. ECM Suite 15955 | -3/Testing | Identified Med. Regenerative Plating (x2) 16023 | -3/Testing | Discovered new exit (range 15) 16029 | -3/Testing | Identified exit to Research 16054 | -3/Testing | Repaired Gyrokinetic Inverter 16071 | -3/Testing | Entered Research 16071 | -2/Research | Evolved 2 slots: Power x1, Utility x1 16190 | -2/Research | Build established: Hacker-Mutant 16337 | -2/Research | Identified exit to Quarantine 16655 | -2/Research | Discovered new exit (range 16) 16688 | -2/Research | Incoming investigation squad redirected 16743 | -2/Research | Identified exit to Access 16946 | -2/Research | System corruption reached 10% 17099 | -2/Research | Spotted B-90 Cyclops 17162 | -2/Research | Repaired Lrg. Storage Unit 17195 | -2/Research | Found Prototype Processor 17195 | -2/Research | Identified Spectral Analyzer 17346 | -2/Research | Garrison activated, responded to threat 17381 | -2/Research | Spotted B-90 Cyclops 17781 | -2/Research | Discovered exit to Access (range 14) 17823 | -2/Research | Fabricated Plasma Sword (x1) 17872 | -2/Research | Local fabrication network quarantined 18172 | -2/Research | Spotted B-90 Cyclops 18288 | -2/Research | Discovered exit to Access (range 11) 18308 | -2/Research | Build established: Scavenger-Mutant 18400 | -2/Research | System corruption reached 30% 18606 | -2/Research | Spotted B-90 Cyclops 18639 | -2/Research | Identified Transdimensional Reconstructor 18639 | -2/Research | Warped through subspace 18666 | -2/Research | Lost 3 parts (1n2u) 18710 | -2/Research | Entered Quarantine 18754 | -2/Quarantine | Cryocooling Duct disabled 18769 | -2/Quarantine | Ambient heat levels rising (+20) 18769 | -2/Quarantine | Non-combat units ordered to evacuate 18804 | -2/Quarantine | Found Alien Artifact 18805 | -2/Quarantine | Identified Phase Redirector 19012 | -2/Quarantine | Discovered exit to Access (range 15) 19037 | -2/Quarantine | Found Alien Artifact 19037 | -2/Quarantine | Identified Subatomic Replicator 19150 | -2/Quarantine | Found Alien Energy Cannon 19150 | -2/Quarantine | Identified Core Cannon 19243 | -2/Quarantine | First assault squad dispatched 19397 | -2/Quarantine | Met incapacitated Sigix Warrior 19397 | -2/Quarantine | Lockdown squad dispatched 19487 | -2/Quarantine | Found Alien Artifact 19487 | -2/Quarantine | Identified Stasis Generator 19514 | -2/Quarantine | Incoming assault squad redirected 19594 | -2/Quarantine | Incoming assault squad redirected 19729 | -2/Quarantine | Found Alien Artifact 19729 | -2/Quarantine | Identified Core Reset Matrix 19729 | -2/Quarantine | Used Core Reset Matrix 19733 | -2/Quarantine | Sensed 4 artifacts in vicinity 19864 | -2/Quarantine | Spotted Fortress 19903 | -2/Quarantine | Discovered new exit (range 6) 19905 | -2/Quarantine | Identified exit to Section 7 19906 | -2/Quarantine | Entered Section 7 19907 | -2/Section 7 | Sensed 18 artifacts in vicinity 20072 | -2/Section 7 | Build established: Mutant 20202 | -2/Section 7 | Core integrity fell below 50% 20256 | -2/Section 7 | Lost 4 parts (1p1n2u) 20390 | -2/Section 7 | Crushed by falling debris 20421 | -2/Section 7 | Lost 4 parts (1p2u1w) 20456 | -2/Section 7 | First assault squad dispatched 20460 | -2/Section 7 | Spotted S7 Guard 20465 | -2/Section 7 | Spotted Alpha 7 20466 | -2/Section 7 | Spotted Alpha 7 20483 | -2/Section 7 | Incoming assault squad redirected 20612 | -2/Section 7 | Spotted B-90 Cyclops 20620 | -2/Section 7 | Lost 12 parts (2p3n6u1w) 20621 | -2/Section 7 | Emitted hypermatrix ping 20622 | -2/Section 7 | Discovered exit to Access (range 12) 20626 | -2/Section 7 | Assembled emerged from beneath the floor 20631 | -2/Section 7 | Entered Access 20631 | -1/Access | Evolved 2 slots: Utility x1, Weapon x1 20772 | -1/Access | Spotted B-99 Colossus 21048 | -1/Access | Lost 16 parts (3p4n5u4w) 21211 | -1/Access | Found Unknown Protection 21211 | -1/Access | Identified Hvy. Reflective Plating 21363 | -1/Access | System corruption reached 10% 21399 | -1/Access | Lost 7 parts (3p2n2u) 21527 | -1/Access | Core integrity fell below 50% 21554 | -1/Access | Lost 5 parts (2n1u2w) 21872 | -1/Access | Lost 8 parts (2p4n1u1w) 22147 | -1/Access | Garrison activated, responded to threat 22164 | -1/Access | Emitted hypermatrix ping 22169 | -1/Access | Assembled emerged from beneath the floor 22235 | -1/Access | Core integrity fell below 20% 22236 | -1/Access | Lost 17 parts (1p5n4u7w) 22238 | -1/Access | Assembled emerged from beneath the floor 22252 | -1/Access | Garrison activated, responded to threat 22330 | -1/Access | Lost 5 parts (3n2u) 22415 | -1/Access | Spotted B-99 Colossus 22421 | -1/Access | Destroyed by B-99 Colossus with Multirail Last Messages --------------- 22362_ Acquired Unknown Device. 22362_ Identified Mni. Drone Bay. 22374_ Acquired Unknown Hackware. 22374_ Identified System Shield. 22375_ System corrupted: Substantial component data lost. 22376_ Detected hypermatrix ping. 22376_ Acquired Unknown Hackware. 22376_ Identified Adv. System Shield. 22378_ Acquired Unknown Device. 22378_ Identified Lrn. Terrain Scanner. 22385_ Acquired Unknown Device. 22385_ Identified Adv. Recalibrator. 22386_ Dropped Mni. Drone Bay. 22395_ System corrupted: Substantial component data lost. 22410_ ALERT: Hostiles spotted, dispatching reinforcements to Terminal A006. 22411_ System corrupted: Component data lost. 22421_ Imp. Gyrokinetic Inverter destroyed. 22421_ Penetrated by Slug. [Achievement: Tester] Map ----- +----------------------------------------------------+ | ????????????# +??????????????????????????????? | | ????????????# #??????????????????????????????? | | ????????????# #??????????????????????????????? | | ????????????+ +??????????????????????????????? | | ????????????# ############???????????????????? | | ????????????# #???????????????????? | | ????????????# #???????????????????? | | ???????#+#### #???????????????????? | | ######## !!! #???????????????????? | | !!! ######??????????????? | | ?##?# !! u ?????????????? | | #####/####### #???????????????????? | | # ##### #???????????????????? | | # ! #???# #???????????????????? | | # #?### #???????????????????? | | # [ #???# #???????????????????? | | # #???# #???????????????????? | | ###+####+######## ss #???????????????????? | | ??# ##??????????????????? | | #?# s # ??????????????????? | | #?# """"" #???????????????????? | | ?## ######## """"" ##? ?????????????????? | | ### ##??#??# """"" #????????????????????? | | # ####???# """"" #????????????????????? | | # ##??# """"" #????????????????????? | | # #???# """""@ #????????????????????? | | # ##??## ##???????????????????? | | # ##+###+#?#??# ##???????????????????? | | # # #????# #????????????????????? | | [ # # #????# #????????????????????? | | + + #????# #? ??????????????????? | | ### ! ##???# #????????????????????? | | ###?# ! #?#?##""o #????????????????????? | | ??#?# ###??#"T ????????????????????? | | ?#??########????#"" ?? ?????????????????? | | #?#???#??#????#?# ???????????????????? | | ?#???#??#???????# ##+??????????????????? | | ??? ?????????#??# +????????????????????? | | ????? ?????##???###BB########????????????????????? | | ?T???#????????????#BB??###????? ?????????????????? | | ?????## ???????#??#####??????????????????????????? | | #???????????????##?#?????????????????????????????? | | ????#?#? ?????#???#??? ?????#????????????????????? | | "?? ??#??????#???????????????????????????????????? | | ?????#????????????#? ???? ??????????????????????? | | ?? ???????"????#??#??????????????????????????????? | | ???????????#???????????"?? ??????????????????????? | | ? ? ???????????????? ????????????????????????????? | | ???#?#?????#? ? ?#??????????????????????????????? | | ???????????#?????????????????????????????????????? | +----------------------------------------------------+ Best States ------------- Heat Dissipation 169 Energy Generation 61 Energy Capacity 1170 Matter Stores 450 Matter Capacity 450 Sight Range 20 Robot Scan Range 16 Terrain Scan Range 24 Terrain Scan Density 285 ECM Strength 5 Jamming Range 16 Cloak Strength 4 Power Amplification 40 Additional Mass Support 9 Base Temperature (-) 200 Armor Coverage 975 Resistance: TH 25 Core Shielding 30 Utility Shielding 90 Thermal Conversion 90 Melee Speed Boost 20 Phase Shifting 15 Evasion (%) 69 Targeting Accuracy 8 Melee Accuracy 32 Target Analysis 8 Armor Integrity Analysis 50 Recoil Reduction 4 Matter Filtering 50 Overload Regulation 60 Offensive Hacking 24 Defensive Hacking 24 Item Schematics ----------------- None Robot Schematics ------------------ None Fabricated ------------ Kinetic Spear | x1 | -6/Factory Datajack | x1 | -6/Factory Lgt. Regenerative Plating | x1 | -4/Factory Plasma Sword | x1 | -2/Research Alien Tech Used ----------------- Integrated Dissipator Transdimensional Reconstructor Phase Redirector Subatomic Replicator Core Cannon Stasis Generator Core Reset Matrix Achievements -------------- Alien Roots Collateral Damage False Reunion Hard Hitter It Was An Accident, I Swear Main Advantage Max Potential Nope Oh No You Don't! Project G-00 Revising The Future Tester Challenges ------------ None Game ------ Seed ThrusterQuantumSuite Manual? 0 Play Time 07:22:29 Cumulative 67.4 hours Start 2021.05.18 @ 14:46:14 End 2021.05.25 @ 17:02:15 Sessions 8 Manual Loads 0 Difficulty Rogue Special Mode None Game No. 26 Rogue 26 Adventurer 0 Explorer 0 Win Type - Total 1 Types 1/0/0/0/0/0/0/0/0 Lore% 46 Gallery% 50 Achievement% 41 Wizard Run 0 Options --------- ASCII 0 Keyboard 0 Movement Mouse Keybinds 0 Fullscreen 1 Font 18/SmallcapsGlow Map View 76x50 Tactical HUD 1 Map Filters NONE Filters NONE Steam 1 RUN: c87b0adb-2c31-4b3b-99c4-652b357049fd